fUSD/lending_fUSD_20240318
["ID","MTS","AMOUNT","RATE_DAILY","PERIOD"]
[319423735,1710726669246,-500.0,0.00031699,4]
[319423736,1710726669256,-500.0,0.00031699,4]
[319423737,1710726669266,-1073.68,0.00031699,4]
[319423738,1710726669277,-500.0,0.00031699,4]
[319423739,1710726669287,-500.0,0.00031699,4]
[319423740,1710726669298,-500.0,0.00031699,4]
[319423741,1710726669309,-563.53,0.00031699,4]
[319423742,1710726669319,-743.99,0.00031699,4]
[319423743,1710726669329,-500.0,0.00031699,4]
[319423744,1710726669341,-500.0,0.00031699,4]
[319423745,1710726669351,-500.0,0.00031699,4]
[319423746,1710726669361,-624.77572322,0.00031699,4]
[319423747,1710726669372,-500.0,0.00031699,4]
[319423748,1710726669382,-713.34,0.00031699,4]
[319423749,1710726669393,-500.0,0.00031699,4]
[319423750,1710726669403,-500.0,0.00031699,4]
[319423751,1710726669413,-565.45963005,0.00031699,4]
[319423752,1710726669424,-500.0,0.00031699,4]
[319423753,1710726669434,-500.0,0.00031699,4]
[319423754,1710726669445,-500.0,0.00031699,4]
[319423755,1710726669456,-500.0,0.00031699,4]
[319423756,1710726669467,-500.0,0.00031699,4]
[319423757,1710726669477,-1734.88,0.00031699,4]
[319423758,1710726669487,-500.0,0.00031699,4]
[319423759,1710726669498,-850.61,0.00031699,4]
[319423760,1710726669508,-500.0,0.00031699,4]
[319423761,1710726669519,-500.0,0.00031699,4]
[319423762,1710726669529,-174.01769381,0.00031699,4]
[319423763,1710726669539,-570.81,0.00031699,4]
[319423764,1710726669550,-500.0,0.00031699,4]
[319423765,1710726669560,-500.0,0.00031699,4]
[319423766,1710726669570,-500.0,0.00031699,4]
[319423767,1710726669581,-500.0,0.00031699,4]
[319423768,1710726669592,-500.0,0.00031699,4]
[319423769,1710726669603,-1978.28,0.00031699,4]
[319423770,1710726669614,-500.0,0.00031699,4]
[319423771,1710726669625,-500.0,0.00031699,4]
[319423772,1710726669636,-500.0,0.00031699,4]
[319423773,1710726669647,-227.80900419,0.00031699,4]
[319423774,1710726669657,-500.0,0.00031699,4]
[319423775,1710726669668,-388.98336805,0.00031699,4]
[319423776,1710726669677,-254.67235066,0.00031699,4]
[319423777,1710726669687,-500.0,0.00031699,4]
[319423778,1710726669697,-583.89,0.00031699,4]
[319423779,1710726669708,-938.25,0.00031699,4]
[319423780,1710726669717,-758.32,0.00031699,4]
[319423781,1710726669728,-641.41,0.00031699,4]
[319423782,1710726669738,-500.0,0.00031699,4]
[319423783,1710726669749,-500.0,0.00031699,4]
[319423784,1710726669759,-500.0,0.00031699,4]
[319423785,1710726669769,-500.0,0.00031699,4]
[319423786,1710726669780,-200.0,0.00031726,2]
[319423787,1710726669790,-2000.0,0.00031726,2]
[319423788,1710726669800,-200.0,0.00031726,2]
[319423789,1710726669810,-2000.0,0.00031726,2]
[319423790,1710726669821,-200.0,0.00031726,2]
[319423791,1710726669832,-100000.0,0.00031755,4]
[319423792,1710726669844,-221.377235,0.00031758,2]
[319423793,1710726669854,-1342.044652,0.00031773,2]
[319423794,1710726669865,-510.0,0.0003178,120]
[319423795,1710726669879,-500.0,0.0003178,4]
[319423796,1710726669889,-500.0,0.0003178,4]
[319423797,1710726669902,-500.0,0.0003178,4]
[319423798,1710726669915,-500.0,0.0003178,4]
[319423799,1710726669930,-500.0,0.0003178,4]
[319423800,1710726669941,-502.57647928,0.0003178,4]
[319423801,1710726669966,-500.0,0.0003178,4]
[319423802,1710726669993,-367.00905411,0.0003178,4]
[319423803,1710726670013,-500.0,0.0003178,4]
[319423804,1710726670029,-500.0,0.0003178,4]
[319423805,1710726670053,-501.60846592,0.0003178,4]
[319423806,1710726670070,-500.0,0.0003178,4]
[319423807,1710726670080,-500.0,0.0003178,4]
[319423808,1710726670092,-500.0,0.0003178,4]
[319423809,1710726670123,-500.0,0.0003178,4]
[319423810,1710726670140,-311.87359844,0.0003178,4]
[319423811,1710726670152,-500.0,0.0003178,4]
[319423812,1710726670169,-500.0,0.0003178,4]
[319423813,1710726670183,-356.89976474,0.0003178,4]
[319423814,1710726670196,-500.0,0.0003178,4]
[319423815,1710726670211,-500.0,0.0003178,4]
[319423816,1710726670226,-500.0,0.0003178,4]
[319423817,1710726670237,-500.0,0.0003178,4]
[319423818,1710726670247,-500.0,0.0003178,4]
[319423819,1710726670259,-500.0,0.0003178,4]
[319423820,1710726670284,-500.0,0.0003178,4]
[319423821,1710726670294,-184.00435799,0.0003178,4]
[319423822,1710726670303,-500.0,0.0003178,4]
[319423823,1710726670313,-501.64768225,0.0003178,4]
[319423824,1710726670323,-500.0,0.0003178,4]
[319423825,1710726670332,-500.0,0.0003178,4]
[319423826,1710726670346,-504.62697311,0.0003178,4]
[319423827,1710726670356,-500.0,0.0003178,4]
[319423828,1710726670366,-500.0,0.0003178,4]
[319423829,1710726670378,-500.0,0.0003178,4]
[319423830,1710726670390,-500.0,0.0003178,4]
[319423831,1710726670400,-500.0,0.0003178,4]
[319423832,1710726670410,-500.0,0.0003178,4]
[319423833,1710726670421,-946.96,0.0003178,4]
[319423834,1710726670431,-500.0,0.0003178,4]
[319423835,1710726670441,-500.0,0.0003178,4]
[319423836,1710726670451,-946.96,0.0003178,4]
[319423837,1710726670462,-500.0,0.0003178,4]
[319423838,1710726670472,-500.0,0.0003178,4]
[319423839,1710726670482,-946.96,0.0003178,4]
[319423840,1710726670492,-500.0,0.0003178,4]
[319423841,1710726670501,-500.0,0.0003178,4]
[319423842,1710726670511,-398.0526482,0.0003178,4]
[319423843,1710726670521,-946.96,0.0003178,4]
[319423844,1710726670530,-591.05778688,0.0003178,4]
[319423845,1710726670540,-500.0,0.0003178,4]
[319423846,1710726670549,-946.96,0.0003178,4]
[319423847,1710726670559,-450.70560313,0.0003178,4]
[319423848,1710726670570,-500.0,0.0003178,4]
[319423849,1710726670581,-946.96,0.0003178,4]
[319423850,1710726670592,-500.0,0.0003178,4]
[319423851,1710726670602,-946.96,0.0003178,4]
[319423852,1710726670613,-946.96,0.0003178,4]
[319423853,1710726670624,-500.0,0.0003178,4]
[319423854,1710726670637,-500.0,0.0003178,4]
[319423855,1710726670650,-946.96,0.0003178,4]
[319423856,1710726670673,-500.0,0.0003178,4]
[319423857,1710726670689,-946.96,0.0003178,4]
[319423858,1710726670708,-500.0,0.0003178,4]
[319423859,1710726670719,-500.0,0.0003178,4]
[319423860,1710726670748,-946.96,0.0003178,4]
[319423861,1710726670770,-608.6273396,0.0003178,4]
[319423862,1710726670790,-500.0,0.0003178,4]
[319423863,1710726670805,-500.0,0.0003178,4]
[319423864,1710726670824,-500.0,0.0003178,4]
[319423865,1710726670844,-500.0,0.0003178,4]
[319423866,1710726670861,-500.0,0.0003178,4]
[319423867,1710726670878,-500.0,0.0003178,4]
[319423868,1710726670894,-584.81232279,0.0003178,4]
[319423869,1710726670907,-502.77211368,0.0003178,4]
[319423870,1710726670927,-500.0,0.0003178,4]
[319423871,1710726670938,-500.0,0.0003178,4]
[319423872,1710726670959,-500.0,0.0003178,4]
[319423873,1710726670968,-493.42041523,0.0003178,4]
[319423874,1710726670982,-500.0,0.0003178,4]
[319423875,1710726671105,-500.0,0.0003178,4]
[319423876,1710726671116,-500.0,0.0003178,4]
[319423877,1710726671127,-571.59693648,0.0003178,4]
[319423878,1710726671137,-500.0,0.0003178,4]
[319423879,1710726671146,-500.0,0.0003178,4]
[319423880,1710726671156,-501.56376122,0.0003178,4]
[319423881,1710726671165,-500.0,0.0003178,4]
[319423882,1710726671174,-500.0,0.0003178,4]
[319423883,1710726671184,-500.0,0.0003178,4]
[319423884,1710726671194,-500.0,0.0003178,4]
[319423885,1710726671204,-500.0,0.0003178,4]
[319423886,1710726671213,-511.58496684,0.0003178,4]
[319423887,1710726671223,-500.0,0.0003178,4]
[319423888,1710726671233,-500.0,0.0003178,4]
[319423889,1710726671243,-500.0,0.0003178,4]
[319423890,1710726671253,-500.0,0.0003178,4]
[319423891,1710726671263,-500.0,0.0003178,4]
[319423892,1710726671272,-500.0,0.0003178,4]
[319423893,1710726671282,-500.0,0.0003178,4]
[319423894,1710726671292,-500.0,0.0003178,4]
[319423895,1710726671302,-504.96722378,0.0003178,4]
[319423896,1710726671311,-178.95908472,0.0003178,4]
[319423897,1710726671320,-500.0,0.0003178,4]
[319423898,1710726671330,-500.0,0.0003178,4]
[319423899,1710726671342,-303.25231222,0.0003178,4]
[319423900,1710726671352,-500.0,0.0003178,4]
[319423901,1710726671361,-294.37105732,0.0003178,4]
[319423902,1710726671372,-513.945224,0.0003178,4]
[319423903,1710726671382,-500.0,0.0003178,4]
[319423904,1710726671392,-500.0,0.0003178,4]
[319423905,1710726671402,-500.0,0.0003178,4]
[319423906,1710726671412,-501.17370993,0.0003178,4]
[319423907,1710726671422,-500.0,0.0003178,4]
[319423908,1710726671433,-500.0,0.0003178,4]
[319423909,1710726671444,-500.0,0.0003178,4]
[319423910,1710726671454,-506.39997805,0.0003178,4]
[319423911,1710726671464,-179.5438031,0.0003178,4]
[319423912,1710726671475,-501.01193885,0.0003178,4]
[319423913,1710726671485,-501.22082926,0.0003178,4]
[319423914,1710726671494,-518.0772177,0.0003178,4]
[319423915,1710726671506,-500.0,0.0003178,4]
[319423916,1710726671516,-500.0,0.0003178,4]
[319423917,1710726671525,-500.0,0.0003178,4]
[319423918,1710726671535,-500.0,0.0003178,4]
[319423919,1710726671545,-500.0,0.0003178,4]
[319423920,1710726671554,-326.77843515,0.0003178,4]
[319423921,1710726671564,-500.0,0.0003178,4]
[319423922,1710726671573,-500.0,0.0003178,4]
[319423923,1710726671583,-500.0,0.0003178,4]
[319423924,1710726671593,-500.0,0.0003178,4]
[319423925,1710726671603,-514.18672381,0.0003178,4]
[319423926,1710726671613,-500.0,0.0003178,4]
[319423927,1710726671623,-282.14785132,0.0003178,4]
[319423928,1710726671632,-597.72,0.0003178,4]
[319423929,1710726671642,-597.72,0.0003178,4]
[319423930,1710726671652,-597.72,0.0003178,4]
[319423931,1710726671661,-597.72,0.0003178,4]
[319423932,1710726671672,-597.72,0.0003178,4]
[319423933,1710726671682,-500.0,0.0003178,4]
[319423934,1710726671692,-597.72,0.0003178,4]
[319423935,1710726671702,-500.0,0.0003178,4]
[319423936,1710726671712,-597.72,0.0003178,4]
[319423937,1710726671722,-500.0,0.0003178,4]
[319423938,1710726671732,-597.72,0.0003178,4]
[319423939,1710726671742,-500.0,0.0003178,4]
[319423940,1710726671752,-597.72,0.0003178,4]
[319423941,1710726671763,-500.0,0.0003178,4]
[319423942,1710726671773,-597.72,0.0003178,4]
[319423943,1710726671783,-500.0,0.0003178,4]
[319423944,1710726671794,-597.72,0.0003178,4]
[319423945,1710726671804,-500.0,0.0003178,4]
[319423946,1710726671814,-500.0,0.0003178,4]
[319423947,1710726671825,-500.0,0.0003178,4]
[319423948,1710726671835,-500.0,0.0003178,4]
[319423949,1710726671846,-500.0,0.0003178,4]
[319423950,1710726671856,-500.0,0.0003178,4]
[319423951,1710726671866,-583.14133909,0.0003178,4]
[319423952,1710726671878,-500.0,0.0003178,4]
[319423953,1710726671889,-500.0,0.0003178,4]
[319423954,1710726671899,-506.24773652,0.0003178,4]
[319423955,1710726671910,-500.0,0.0003178,4]
[319423956,1710726671921,-500.0,0.0003178,4]
[319423957,1710726671930,-500.0,0.0003178,4]
[319423958,1710726671943,-500.0,0.0003178,4]
[319423959,1710726671954,-500.0,0.0003178,4]
[319423960,1710726671963,-392.00856413,0.0003178,4]
[319423961,1710726671973,-532.82938452,0.0003178,4]
[319423962,1710726671982,-500.0,0.0003178,4]
[319423963,1710726671993,-500.0,0.0003178,4]
[319423964,1710726672002,-471.18469903,0.0003178,4]
[319423965,1710726672011,-500.0,0.0003178,4]
[319423966,1710726672022,-500.0,0.0003178,4]
[319423967,1710726672031,-622.94128864,0.0003178,4]
[319423968,1710726672041,-500.0,0.0003178,4]
[319423969,1710726672050,-500.0,0.0003178,4]
[319423970,1710726672059,-606.36249202,0.0003178,4]
[319423971,1710726672069,-500.0,0.0003178,4]
[319423972,1710726672079,-500.0,0.0003178,4]
[319423973,1710726672090,-266.30571964,0.0003178,4]
[319423974,1710726672100,-511.51805213,0.0003178,4]
[319423975,1710726672109,-511.51236369,0.0003178,4]
[319423976,1710726672119,-500.0,0.0003178,4]
[319423977,1710726672128,-502.71299368,0.0003178,4]
[319423978,1710726672137,-500.0,0.0003178,4]
[319423979,1710726672147,-500.0,0.0003178,4]
[319423980,1710726672156,-500.0,0.0003178,4]
[319423981,1710726672166,-500.0,0.0003178,4]
[319423982,1710726672177,-504.39390656,0.0003178,4]
[319423983,1710726672187,-385.47047636,0.0003178,4]
[319423984,1710726672197,-512.49048867,0.0003178,4]
[319423985,1710726672207,-506.24907788,0.0003178,4]
[319423986,1710726672217,-500.0,0.0003178,4]
[319423987,1710726672228,-500.0,0.0003178,4]
[319423988,1710726672238,-500.0,0.0003178,4]
[319423989,1710726672248,-500.0,0.0003178,4]
[319423990,1710726672258,-500.0,0.0003178,4]
[319423991,1710726672268,-500.0,0.0003178,4]
[319423992,1710726672278,-500.0,0.0003178,4]
[319423993,1710726672288,-500.0,0.0003178,4]
[319423994,1710726672298,-500.0,0.0003178,4]
[319423995,1710726672308,-513.12070225,0.0003178,4]
[319423996,1710726672319,-504.16734723,0.0003178,4]
[319423997,1710726672329,-503.56123198,0.0003178,4]
[319423998,1710726672340,-500.0,0.0003178,4]
[319423999,1710726672350,-500.0,0.0003178,4]
[319424000,1710726672360,-500.0,0.0003178,4]
[319424001,1710726672370,-500.0,0.0003178,4]
[319424002,1710726672381,-500.0,0.0003178,4]
[319424003,1710726672391,-500.0,0.0003178,4]
[319424004,1710726672402,-500.0,0.0003178,4]
[319424005,1710726672412,-453.44405498,0.0003178,4]
[319424006,1710726672424,-1041.25,0.0003178,4]
[319424007,1710726672435,-1041.25,0.0003178,4]
[319424008,1710726672445,-1041.25,0.0003178,4]
[319424009,1710726672455,-1041.25,0.0003178,4]
[319424010,1710726672466,-1041.25,0.0003178,4]
[319424011,1710726672477,-501.52885809,0.0003178,4]
[319424012,1710726672486,-1041.25,0.0003178,4]
[319424013,1710726672497,-1041.25,0.0003178,4]
[319424014,1710726672507,-1041.25,0.0003178,4]
[319424015,1710726672517,-645.20510565,0.0003178,4]
[319424016,1710726672526,-1041.25,0.0003178,4]
[319424017,1710726672536,-1041.25,0.0003178,4]
[319424018,1710726672549,-1041.25,0.0003178,4]
[319424019,1710726672559,-1041.25,0.0003178,4]
[319424020,1710726672570,-1041.25,0.0003178,4]
[319424021,1710726672581,-1041.25,0.0003178,4]
[319424022,1710726672591,-500.0,0.0003178,4]
[319424023,1710726672600,-408.2617888,0.0003178,4]
[319424024,1710726672610,-508.56059536,0.0003178,4]
[319424025,1710726672620,-500.0,0.0003178,4]
[319424026,1710726672630,-500.0,0.0003178,4]
[319424027,1710726672640,-620.6430374,0.0003178,4]
[319424028,1710726672651,-500.0,0.0003178,4]
[319424029,1710726672660,-500.71759983,0.0003178,4]
[319424030,1710726672670,-510.4200669,0.0003178,4]
[319424031,1710726672680,-500.0,0.0003178,4]
[319424032,1710726672690,-500.0,0.0003178,4]
[319424033,1710726672700,-500.0,0.0003178,4]
[319424034,1710726672710,-500.0,0.0003178,4]
[319424035,1710726672720,-500.0,0.0003178,4]
[319424036,1710726672730,-500.0,0.0003178,4]
[319424037,1710726672740,-507.45531848,0.0003178,4]
[319424038,1710726672750,-1026.0,0.00031799,5]
[319424039,1710726672760,-1041.25,0.00031799,4]
[319424040,1710726672770,-387.5409,0.000318,7]
[319424041,1710726672780,-4676.93,0.000318,2]
[319424042,1710726672790,-4676.93,0.000318,2]
[319424043,1710726672801,-4676.93,0.000318,2]
[319424044,1710726672811,-4676.93,0.000318,2]
[319424045,1710726672821,-4676.93,0.000318,2]
[319424046,1710726672832,-4676.93,0.000318,2]
[319424047,1710726672843,-4676.93,0.000318,2]
[319424048,1710726672852,-4676.93,0.000318,2]
[319424049,1710726672862,-4676.93,0.000318,2]
[319424050,1710726672876,-4676.93,0.000318,2]
[319424051,1710726672886,-4676.93,0.000318,2]
[319424052,1710726672897,-4676.93,0.000318,2]
[319424053,1710726672908,-4676.93,0.000318,2]
[319424054,1710726672920,-4676.93,0.000318,2]
[319424055,1710726672931,-4676.93,0.000318,2]
[319424056,1710726672942,-4676.93,0.000318,2]
[319424057,1710726672952,-4676.93,0.000318,2]
[319424058,1710726673060,-4676.93,0.000318,2]
[319424059,1710726673080,-4676.93,0.000318,2]
[319424060,1710726673090,-4676.93,0.000318,2]
[319424061,1710726673100,-300.0,0.000318,2]
[319424062,1710726673110,-312.1,0.0003182,2]
[319424063,1710726673121,-8104.62823311,0.00031875,20]
[319424064,1710726673131,-500.0,0.00031876,2]
[319424065,1710726673141,-610.22,0.00031876,2]
[319424066,1710726673151,-10000.0,0.00031888,7]
[319424067,1710726673161,-500.0,0.00031898,4]
[319424068,1710726673172,-500.0,0.00031898,4]
[319424069,1710726673182,-500.0,0.00031898,4]
[319424070,1710726673192,-1073.68,0.00031898,4]
[319424071,1710726673202,-500.0,0.00031898,4]
[319424072,1710726673211,-500.0,0.00031898,4]
[319424073,1710726673221,-500.0,0.00031898,4]
[319424074,1710726673231,-563.53,0.00031898,4]
[319424075,1710726673241,-743.99,0.00031898,4]
[319424076,1710726673251,-500.0,0.00031898,4]
[319424077,1710726673262,-500.0,0.00031898,4]
[319424078,1710726673272,-500.0,0.00031898,4]
[319424079,1710726673282,-500.0,0.00031898,4]
[319424080,1710726673293,-713.34,0.00031898,4]
[319424081,1710726673303,-500.0,0.00031898,4]
[319424082,1710726673313,-251.58571239,0.00031898,4]
[319424083,1710726673323,-500.0,0.00031898,4]
[319424084,1710726673332,-500.0,0.00031898,4]
[319424085,1710726673344,-500.0,0.00031898,4]
[319424086,1710726673354,-500.0,0.00031898,4]
[319424087,1710726673364,-500.0,0.00031898,4]
[319424088,1710726673375,-1734.88,0.00031898,4]
[319424089,1710726673385,-500.0,0.00031898,4]
[319424090,1710726673395,-850.61,0.00031898,4]
[319424091,1710726673405,-500.0,0.00031898,4]
[319424092,1710726673415,-503.00990024,0.00031898,4]
[319424093,1710726673425,-570.81,0.00031898,4]
[319424094,1710726673435,-500.0,0.00031898,4]
[319424095,1710726673444,-239.09297739,0.00031898,4]
[319424096,1710726673454,-447.17139848,0.00031898,4]
[319424097,1710726673463,-500.0,0.00031898,4]
[319424098,1710726673472,-500.0,0.00031898,4]
[319424099,1710726673482,-1978.28,0.00031898,4]
[319424100,1710726673503,-500.0,0.00031898,4]
[319424101,1710726673520,-500.0,0.00031898,4]
[319424102,1710726673540,-500.0,0.00031898,4]
[319424103,1710726673562,-500.0,0.00031898,4]
[319424104,1710726673584,-500.0,0.00031898,4]
[319424105,1710726673608,-583.89,0.00031898,4]
[319424106,1710726673630,-938.25,0.00031898,4]
[319424107,1710726673652,-758.32,0.00031898,4]
[319424108,1710726673674,-641.41,0.00031898,4]
[319424109,1710726673691,-500.0,0.00031898,4]
[319424110,1710726673702,-500.0,0.00031898,4]
[319424111,1710726673712,-500.0,0.00031898,4]
[319424112,1710726673721,-500.0,0.00031898,4]
[319424113,1710726673731,-946.96,0.00031898,4]
[319424114,1710726673742,-500.0,0.00031898,4]
[319424115,1710726673752,-597.72,0.00031898,4]
[319424116,1710726673763,-1562.98,0.00031899,4]
[319424117,1710726673773,-28102.01856923,0.000319,2]
[319424118,1710726673783,-2854.59893169,0.00031901,2]
[319424119,1710726673793,-446.2357531,0.00031902,2]
[319424120,1710726673803,-8492.51012711,0.00031907,2]
[319424121,1710726673812,-1563.76697836,0.0003191,2]
[319424122,1710726673822,-2774.68827223,0.00031911,2]
[319424123,1710726673832,-2900.56117768,0.00031913,2]
[319424124,1710726673842,-8637.41723755,0.00031913,2]
[319424125,1710726673852,-483.08484401,0.00031916,2]
[319424126,1710726673862,-2862.6049015,0.0003192,2]
[319424127,1710726673873,-2954.04921976,0.00031922,2]
[319424128,1710726673883,-925.31473374,0.00031922,2]
[319424129,1710726673893,-1342.0446522,0.00031923,2]
[319424130,1710726673904,-500.0,0.00031926,4]
[319424131,1710726673915,-500.0,0.00031926,4]
[319424132,1710726673925,-500.0,0.00031926,4]
[319424133,1710726673935,-500.0,0.00031926,4]
[319424134,1710726673946,-500.0,0.00031926,4]
[319424135,1710726673957,-426.00436592,0.00031926,4]
[319424136,1710726673966,-500.0,0.00031926,4]
[319424137,1710726673977,-501.95954056,0.00031926,4]
[319424138,1710726673986,-2954.63083222,0.00031927,2]
[319424139,1710726673996,-2122.71465758,0.00031927,2]
[319424140,1710726674005,-2780.60863945,0.00031929,2]
[319424141,1710726674015,-2962.71386392,0.00031934,2]
[319424142,1710726674025,-2552.34823544,0.00031934,2]
[319424143,1710726674035,-2837.34768551,0.00031937,2]
[319424144,1710726674044,-1475.70154153,0.00031937,2]
[319424145,1710726674054,-451.78862816,0.00031938,2]
[319424146,1710726674063,-2199.64752676,0.00031939,2]
[319424147,1710726674074,-8569.26225092,0.00031942,2]
[319424148,1710726674084,-2728.38797994,0.00031944,2]
[319424149,1710726674093,-473.08884839,0.00031944,2]
[319424150,1710726674103,-2918.53774029,0.00031944,2]
[319424151,1710726674114,-2248.07695256,0.00031945,2]
[319424152,1710726674125,-7860.11773866,0.00031945,2]
[319424153,1710726674134,-2633.5603232,0.00031945,2]
[319424154,1710726674143,-1821.93106975,0.00031947,2]
[319424155,1710726674153,-8381.332028,0.00031949,2]
[319424156,1710726674163,-2879.12864113,0.0003195,2]
[319424157,1710726674173,-2415.2735338,0.0003195,2]
[319424158,1710726674183,-2988.91100162,0.00031951,2]
[319424159,1710726674193,-150.09670702,0.00031952,2]
[319424160,1710726674202,-2834.55097463,0.00031954,2]
[319424161,1710726674212,-2736.14589289,0.00031954,2]
[319424162,1710726674222,-2401.55894089,0.00031956,2]
[319424163,1710726674232,-2631.08369029,0.00031957,2]
[319424164,1710726674241,-2645.78100877,0.00031959,2]
[319424165,1710726674251,-999.04,0.0003196,2]
[319424166,1710726674263,-2836.76370489,0.00031961,2]
[319424167,1710726674273,-1041.25,0.00031962,4]
[319424168,1710726674282,-9270.0935458,0.00031963,2]
[319424169,1710726674292,-2955.15175593,0.00031964,2]
[319424170,1710726674302,-459.04420407,0.00031965,2]
[319424171,1710726674311,-2293.96960355,0.00031966,2]
[319424172,1710726674321,-2955.00114133,0.00031967,2]
[319424173,1710726674330,-7701.47549323,0.00031967,2]
[319424174,1710726674341,-2968.83741727,0.00031968,2]
[319424175,1710726674350,-2783.27070044,0.00031969,2]
[319424176,1710726674360,-484.54670645,0.0003197,2]
[319424177,1710726674370,-2837.9451102,0.00031973,2]
[319424178,1710726674380,-2922.84361475,0.00031974,2]
[319424179,1710726674389,-2960.90048578,0.00031974,2]
[319424180,1710726674399,-2955.78268761,0.00031975,2]
[319424181,1710726674408,-8167.85526069,0.00031978,2]
[319424182,1710726674418,-2786.62635668,0.00031981,2]
[319424183,1710726674428,-2862.05419248,0.00031981,2]
[319424184,1710726674437,-2305.6382625,0.00031983,2]
[319424185,1710726674448,-8576.19660026,0.00031984,2]
[319424186,1710726674457,-475.45760509,0.00031985,2]
[319424187,1710726674467,-2942.75748542,0.00031986,2]
[319424188,1710726674477,-2909.16120292,0.00031986,2]
[319424189,1710726674487,-8599.81607629,0.00031988,2]
[319424190,1710726674496,-2968.3722854,0.00031997,2]
[319424191,1710726674506,-1562.98,0.00031998,4]
[319424192,1710726674517,-500.0,0.00031998,4]
[319424193,1710726674527,-500.0,0.00031998,4]
[319424194,1710726674537,-500.0,0.00031998,4]
[319424195,1710726674547,-1073.68,0.00031998,4]
[319424196,1710726674556,-500.0,0.00031998,4]
[319424197,1710726674565,-500.0,0.00031998,4]
[319424198,1710726674575,-505.19403284,0.00031998,4]
[319424199,1710726674586,-563.53,0.00031998,4]
[319424200,1710726674595,-743.99,0.00031998,4]
[319424201,1710726674605,-500.0,0.00031998,4]
[319424202,1710726674615,-500.0,0.00031998,4]
[319424203,1710726674625,-500.0,0.00031998,4]
[319424204,1710726674634,-500.0,0.00031998,4]
[319424205,1710726674643,-500.0,0.00031998,4]
[319424206,1710726674653,-713.34,0.00031998,4]
[319424207,1710726674662,-500.0,0.00031998,4]
[319424208,1710726674671,-500.0,0.00031998,4]
[319424209,1710726674681,-500.0,0.00031998,4]
[319424210,1710726674690,-500.0,0.00031998,4]
[319424211,1710726674700,-500.47106671,0.00031998,4]
[319424212,1710726674709,-500.0,0.00031998,4]
[319424213,1710726674720,-500.0,0.00031998,4]
[319424214,1710726674730,-500.0,0.00031998,4]
[319424215,1710726674740,-500.0,0.00031998,4]
[319424216,1710726674749,-1734.88,0.00031998,4]
[319424217,1710726674759,-500.0,0.00031998,4]
[319424218,1710726674769,-850.61,0.00031998,4]
[319424219,1710726674778,-500.0,0.00031998,4]
[319424220,1710726674788,-570.81,0.00031998,4]
[319424221,1710726674798,-500.0,0.00031998,4]
[319424222,1710726674808,-500.0,0.00031998,4]
[319424223,1710726674818,-500.0,0.00031998,4]
[319424224,1710726674828,-1978.28,0.00031998,4]
[319424225,1710726674839,-500.0,0.00031998,4]
[319424226,1710726674849,-500.0,0.00031998,4]
[319424227,1710726674951,-507.52310353,0.00031998,4]
[319424228,1710726674962,-500.0,0.00031998,4]
[319424229,1710726674972,-510.28698048,0.00031998,4]
[319424230,1710726674982,-500.0,0.00031998,4]
[319424231,1710726674991,-583.89,0.00031998,4]
[319424232,1710726675001,-938.25,0.00031998,4]
[319424233,1710726675011,-758.32,0.00031998,4]
[319424234,1710726675021,-641.41,0.00031998,4]